bitfinex/quotes_BTCUSD_20251009
["timestamp","ask_amount","ask_price","bid_price","bid_amount"]
[1759992365978,0.52206712,122200.0,122190.0,2.05448379]
[1759992366384,0.52206712,122200.0,122190.0,2.28508379]
[1759992366587,0.00371999,122200.0,122190.0,2.05448379]
[1759992366813,0.00113155,122210.0,122190.0,2.05448379]
[1759992366814,0.00113155,122210.0,122200.0,0.16366612]
[1759992366982,0.00113155,122210.0,122200.0,1.18407375]
[1759992367198,0.00113155,122210.0,122200.0,1.20698714]
[1759992367606,0.00113155,122210.0,122200.0,1.00095616]
[1759992367829,0.00113155,122210.0,122200.0,1.23155616]
[1759992368043,0.00213155,122210.0,122200.0,1.23555616]
[1759992369252,0.00713155,122210.0,122200.0,1.23555616]
[1759992369482,0.00713155,122210.0,122200.0,1.00495616]
[1759992369702,0.00713155,122210.0,122200.0,1.23555616]
[1759992369912,0.00713155,122210.0,122200.0,1.05495616]
[1759992370099,0.00713155,122210.0,122200.0,1.28555616]
[1759992370315,0.00113155,122210.0,122200.0,1.28155616]
[1759992370465,0.00113155,122210.0,122200.0,1.28755616]
[1759992370685,0.00213155,122210.0,122200.0,1.28755616]
[1759992373459,0.00213155,122210.0,122200.0,1.05695616]
[1759992373672,0.00213155,122210.0,122200.0,1.28755616]
[1759992374101,0.00213155,122210.0,122200.0,1.05695616]
[1759992374308,0.00213155,122210.0,122200.0,1.28755616]
[1759992378580,0.00213155,122210.0,122200.0,1.05695616]
[1759992378753,0.00213155,122210.0,122200.0,1.71303616]
[1759992379168,0.00213155,122210.0,122200.0,1.05695616]
[1759992379398,0.00213155,122210.0,122200.0,1.71303616]
[1759992381432,0.00213155,122210.0,122200.0,1.48247616]
[1759992381647,0.00213155,122210.0,122200.0,1.71303616]
[1759992391200,0.00213155,122210.0,122200.0,1.05695616]
[1759992391415,0.00213155,122210.0,122200.0,1.71303616]
[1759992392482,0.00213155,122210.0,122200.0,1.05695616]
[1759992392689,0.00213155,122210.0,122200.0,1.0340972]
[1759992392917,0.00213155,122210.0,122200.0,1.71303616]
[1759992394612,0.00213155,122210.0,122200.0,1.48247616]
[1759992395009,0.00213155,122210.0,122200.0,1.71303616]
[1759992396055,0.00213155,122210.0,122200.0,1.79770094]
[1759992398961,0.00213155,122210.0,122200.0,1.56714094]
[1759992399178,0.00213155,122210.0,122200.0,1.79770094]
[1759992399602,0.00213155,122210.0,122200.0,1.56714094]
[1759992400003,0.00213155,122210.0,122200.0,1.79770094]
[1759992402149,0.00213155,122210.0,122200.0,1.56714094]
[1759992402360,0.00213155,122210.0,122200.0,1.79770094]
[1759992402560,0.00213155,122210.0,122200.0,1.56714094]
[1759992402784,0.00213155,122210.0,122200.0,1.79770094]
[1759992406350,0.00213155,122210.0,122200.0,1.56714094]
[1759992406548,0.00213155,122210.0,122200.0,1.54316636]
[1759992406788,0.00213155,122210.0,122200.0,1.79770094]
[1759992409565,0.4988388,122250.0,122200.0,1.71262094]
[1759992409768,0.4988388,122250.0,122240.0,0.0121]
[1759992409981,0.5143688,122250.0,122240.0,0.34438]
[1759992410190,0.51640591,122250.0,122240.0,0.34438]
[1759992410407,0.45021088,122250.0,122240.0,0.34438]
[1759992410870,0.45126113,122250.0,122240.0,0.34438]
[1759992411542,0.43473113,122250.0,122240.0,0.30217256]
[1759992411756,0.44373113,122250.0,122240.0,0.53373256]
[1759992413493,0.44373113,122250.0,122240.0,0.37012]
[1759992414127,0.44373113,122250.0,122240.0,0.13956]
[1759992414332,0.44373113,122250.0,122240.0,0.37012]
[1759992414542,0.45926113,122250.0,122240.0,0.37012]
[1759992415431,0.44373113,122250.0,122240.0,0.53373256]
[1759992415854,0.46829897,122250.0,122240.0,0.53373256]
[1759992416056,0.48382897,122250.0,122240.0,0.37012]
[1759992418496,0.48382897,122250.0,122240.0,0.13956]
[1759992418695,0.48382897,122250.0,122240.0,0.34538]
[1759992422568,0.48382897,122250.0,122240.0,0.37012]
[1759992422755,0.22929439,122250.0,122240.0,0.37012]
[1759992422961,0.48382897,122250.0,122240.0,0.37012]
[1759992424150,0.48382897,122250.0,122240.0,0.13956]
[1759992424362,0.48382897,122250.0,122240.0,0.02974]
[1759992424604,1.21059675,122250.0,122240.0,0.001]
[1759992424823,1.21826899,122250.0,122240.0,0.001]
[1759992425037,1.23361488,122250.0,122240.0,0.001]
[1759992425475,1.21826946,122250.0,122240.0,0.075]
[1759992425965,1.21826946,122250.0,122240.0,0.13496]
[1759992426170,1.21826946,122250.0,122240.0,0.001]
[1759992426370,1.21826946,122250.0,122240.0,0.07464]
[1759992426994,1.24470209,122250.0,122240.0,0.07464]
[1759992427197,1.24470209,122250.0,122240.0,0.1344]
[1759992427418,1.27478658,122250.0,122240.0,0.001]
[1759992427625,1.29011496,122250.0,122240.0,0.18292]
[1759992427831,1.29011496,122250.0,122240.0,0.001]
[1759992428036,1.29011496,122250.0,122240.0,0.2212]
[1759992428239,1.22318933,122250.0,122240.0,0.001]
[1759992428452,0.96865475,122250.0,122240.0,0.23156]
[1759992429282,0.94222212,122250.0,122240.0,0.23156]
[1759992429656,0.93976814,122250.0,122240.0,0.23156]
[1759992430520,1.19430272,122250.0,122240.0,0.23156]
[1759992431380,1.17897434,122250.0,122240.0,0.23156]
[1759992432195,0.92443976,122250.0,122240.0,0.23156]
[1759992432948,1.19428595,122250.0,122240.0,0.23156]
[1759992433357,0.68521679,122250.0,122240.0,0.23156]
[1759992433600,1.19428595,122250.0,122240.0,0.23156]
[1759992434410,0.68521679,122250.0,122240.0,0.23156]
[1759992434701,1.19428595,122250.0,122240.0,0.23156]
[1759992435090,0.93975137,122250.0,122240.0,0.23156]
[1759992435398,0.92443976,122250.0,122240.0,0.23156]
[1759992442335,0.66990518,122250.0,122240.0,0.23156]
[1759992442648,0.92443976,122250.0,122240.0,0.23156]
[1759992443657,0.91676705,122250.0,122240.0,0.23156]
[1759992443805,0.92442058,122250.0,122240.0,0.23156]
[1759992446446,0.93973148,122250.0,122240.0,0.23156]
[1759992447512,0.93073148,122250.0,122240.0,0.23156]
[1759992447740,0.93073148,122250.0,122240.0,0.23056]
[1759992447951,0.94873148,122250.0,122240.0,0.23156]
[1759992449753,0.94874331,122250.0,122240.0,0.23156]
[1759992450687,1.20327789,122250.0,122240.0,0.001]
[1759992450888,1.28327469,122250.0,122240.0,0.23156]
[1759992451898,1.02874011,122250.0,122240.0,0.23156]
[1759992452101,0.94874331,122250.0,122240.0,0.23156]
[1759992453754,0.94874331,122250.0,122240.0,0.001]
[1759992454017,0.94874331,122250.0,122240.0,0.23156]
[1759992457293,0.94874331,122250.0,122240.0,0.001]
[1759992457457,0.94874331,122250.0,122240.0,0.23156]
[1759992457867,0.69420873,122250.0,122240.0,0.23156]
[1759992458170,1.03368858,122250.0,122240.0,0.23156]
[1759992458366,1.03368858,122250.0,122240.0,0.001]
[1759992458593,1.03368858,122250.0,122240.0,0.23156]
[1759992458930,1.01071232,122250.0,122240.0,0.23156]
[1759992459134,1.03372832,122250.0,122240.0,0.23156]
[1759992460544,1.11372512,122250.0,122240.0,0.001]
[1759992460955,1.4796376,122250.0,122240.0,0.001]
[1759992461162,1.17024224,122250.0,122240.0,0.001]
[1759992461446,1.17024193,122250.0,122240.0,0.001]
[1759992463659,1.1702395,122250.0,122240.0,0.001]
[1759992465071,1.14015501,122250.0,122240.0,0.001]
[1759992470877,1.50971935,122250.0,122240.0,0.001]
[1759992471044,1.74027935,122250.0,122240.0,0.001]
[1759992471217,1.4007995,122250.0,122240.0,0.001]
[1759992476422,1.06131965,122250.0,122240.0,0.001]
[1759992476712,1.4007995,122250.0,122240.0,0.001]
[1759992476916,1.1702395,122250.0,122240.0,0.001]
[1759992477134,1.37071501,122250.0,122240.0,0.001]
[1759992478695,1.34428238,122250.0,122240.0,0.001]
[1759992479356,1.26428558,122250.0,122240.0,0.001]
[1759992480100,1.03372558,122250.0,122240.0,0.001]
[1759992480294,1.26428558,122250.0,122240.0,0.001]
[1759992481196,1.03371956,122250.0,122240.0,0.001]
[1759992481427,1.26427956,122250.0,122240.0,0.001]
[1759992481828,1.34427636,122250.0,122240.0,0.001]
[1759992484778,1.11371636,122250.0,122240.0,0.001]
[1759992484983,1.34427636,122250.0,122240.0,0.001]
[1759992486154,1.26427956,122250.0,122240.0,0.001]
[1759992486847,1.26428264,122250.0,122240.0,0.001]
[1759992495133,1.26428352,122250.0,122240.0,0.001]
[1759992495519,1.29071615,122250.0,122240.0,0.001]
[1759992496138,1.60376337,122250.0,122240.0,1e-08]
[1759992496337,1.74027729,122250.0,122240.0,1e-08]
[1759992497497,1.77042919,122250.0,122240.0,1e-08]
[1759992497720,1.75842919,122250.0,122240.0,1e-08]
[1759992497935,0.16365272,122210.0,122200.0,0.0858]
[1759992498152,0.50926257,122210.0,122200.0,0.0858]
[1759992498401,0.52552257,122210.0,122200.0,0.0858]
[1759992498826,0.5500993,122210.0,122200.0,0.0858]
[1759992499471,0.16366612,122200.0,122190.0,0.48918967]
[1759992499661,0.16366612,122200.0,122190.0,0.75433464]
[1759992499857,0.16366612,122200.0,122190.0,0.77864464]
[1759992500270,0.18824285,122200.0,122190.0,0.77864464]
[1759992500690,0.18924285,122200.0,122190.0,0.78164464]
[1759992500830,0.18924285,122200.0,122190.0,0.79164464]
[1759992503646,0.18924285,122200.0,122190.0,0.78346084]
[1759992504057,0.21139113,122200.0,122190.0,0.61978133]
[1759992504263,0.22765113,122200.0,122190.0,0.59547133]
[1759992504653,0.22765113,122200.0,122190.0,0.27979133]
[1759992504857,0.22765113,122200.0,122190.0,0.59547133]
[1759992505285,0.20550285,122200.0,122190.0,0.59547133]
[1759992508863,0.20550285,122200.0,122190.0,0.51035133]
[1759992509200,0.98037476,122200.0,122190.0,0.33715133]
[1759992509358,0.98037476,122200.0,122190.0,0.56771133]
[1759992509962,0.97937476,122200.0,122190.0,0.56471133]
[1759992510137,1.05937156,122200.0,122190.0,0.56571133]
[1759992510348,1.05937156,122200.0,122190.0,0.48059133]
[1759992510561,1.05937156,122200.0,122190.0,0.47059133]
[1759992510923,1.05937156,122200.0,122190.0,0.47659133]
[1759992511163,1.05937156,122200.0,122190.0,0.24603133]
[1759992511371,1.05937156,122200.0,122190.0,0.47563133]
[1759992512429,1.05937156,122200.0,122190.0,0.47663133]
[1759992512684,1.05937156,122200.0,122190.0,0.24603133]
[1759992512895,0.16370631,122170.0,122160.0,0.08512]
[1759992513152,0.59243822,122170.0,122160.0,0.29496225]
[1759992513363,0.62096822,122170.0,122160.0,0.29496225]
[1759992513776,0.64555434,122170.0,122160.0,0.29496225]
[1759992514603,0.64555434,122170.0,122160.0,0.30096225]
[1759992515625,0.29380449,122170.0,122160.0,0.09120225]
[1759992515826,0.29380449,122170.0,122160.0,0.32288225]
[1759992516416,0.38607129,122170.0,122160.0,0.32288225]
[1759992518597,0.38607129,122170.0,122160.0,0.32554316]
[1759992520065,0.64096715,122170.0,122160.0,0.32554316]
[1759992520902,0.56097035,122170.0,122160.0,0.32554316]
[1759992522404,0.54870035,122170.0,122160.0,0.09486316]
[1759992522612,0.54870035,122170.0,122160.0,0.32554316]
[1759992523173,0.54870035,122170.0,122160.0,0.09486316]
[1759992523580,0.54870035,122170.0,122160.0,0.32554316]
[1759992524435,0.57610335,122170.0,122160.0,0.32554316]
[1759992524785,0.57610335,122170.0,122160.0,0.09486316]
[1759992525021,0.57610335,122170.0,122160.0,0.32554316]
[1759992525434,0.57610335,122170.0,122160.0,0.09486316]
[1759992525634,0.57610335,122170.0,122160.0,0.32554316]
[1759992527579,0.58837335,122170.0,122160.0,0.09486316]
[1759992527752,0.58837335,122170.0,122160.0,0.32554316]
[1759992528392,0.59601192,122170.0,122160.0,0.32554316]
[1759992529196,0.34111606,122170.0,122160.0,0.32554316]
[1759992529390,0.59601192,122170.0,122160.0,0.32554316]
[1759992529838,0.58374192,122170.0,122160.0,0.32554316]
[1759992531322,0.61129657,122170.0,122160.0,0.32554316]
[1759992533390,0.35640071,122170.0,122160.0,0.32554316]
[1759992533612,0.61129657,122170.0,122160.0,0.32554316]
[1759992537347,0.61131508,122170.0,122160.0,0.32554316]
[1759992537825,0.61131508,122170.0,122160.0,0.00974316]
[1759992538043,0.61131508,122170.0,122160.0,0.32558316]
[1759992538255,0.61131508,122170.0,122160.0,0.00974316]
[1759992538461,0.61131508,122170.0,122160.0,0.09490316]
[1759992538642,0.61131508,122170.0,122160.0,0.27458316]
[1759992540635,0.61136459,122170.0,122160.0,0.27458316]
[1759992541233,0.61136459,122170.0,122160.0,0.00974316]
[1759992541454,1.20626045,122170.0,122160.0,0.04706316]
[1759992542409,1.20626045,122170.0,122160.0,0.00974316]
[1759992542628,1.51767343,122170.0,122160.0,0.00974316]
[1759992542842,1.51122205,122170.0,122160.0,0.00974316]
[1759992543509,1.51122205,122170.0,122160.0,0.00274316]
[1759992543725,1.77111791,122170.0,122160.0,0.00374316]
[1759992543938,1.77811791,122170.0,122160.0,0.00374316]
[1759992545586,1.54735791,122170.0,122160.0,0.00374316]
[1759992545774,1.77823791,122170.0,122160.0,0.00374316]
[1759992549991,1.52334205,122170.0,122160.0,0.00374316]
[1759992550197,1.77823791,122170.0,122160.0,0.00374316]
[1759992550808,1.52334205,122170.0,122160.0,0.00374316]
[1759992551028,1.51134205,122170.0,122160.0,0.00274316]
[1759992551447,1.53034205,122170.0,122160.0,0.00374316]
[1759992552085,1.53031632,122170.0,122160.0,0.00374316]
[1759992552311,1.54031632,122170.0,122160.0,0.00474316]
[1759992553697,1.79521218,122170.0,122160.0,0.00474316]
[1759992553872,1.54831632,122170.0,122160.0,0.00474316]
[1759992557947,1.54831126,122170.0,122160.0,0.00474316]
[1759992558998,1.80320712,122170.0,122160.0,0.00474316]
[1759992559234,1.79520712,122170.0,122160.0,0.00474316]
[1759992559435,1.54031126,122170.0,122160.0,0.00474316]
[1759992560275,1.52262678,122170.0,122160.0,0.00474316]
[1759992561422,1.5402595,122170.0,122160.0,0.00474316]
[1759992561629,1.79515536,122170.0,122160.0,0.00474316]
[1759992563223,0.50375992,122130.0,122120.0,0.06619503]
[1759992563448,0.84790784,122130.0,122120.0,0.15685796]
[1759992563666,0.86314784,122130.0,122120.0,0.15685796]
[1759992563817,0.87541784,122130.0,122120.0,0.15685796]
[1759992564038,0.90001184,122130.0,122120.0,0.09066293]
[1759992564245,0.90001184,122130.0,122120.0,0.00050293]
[1759992564422,0.90001184,122130.0,122120.0,0.31650293]
[1759992564423,0.64511598,122130.0,122120.0,0.31650293]
[1759992564783,0.94084097,122130.0,122120.0,0.32954293]
[1759992565448,0.94084097,122130.0,122120.0,0.01350293]
[1759992565657,0.94084097,122130.0,122120.0,0.32954293]
[1759992566109,0.90201184,122130.0,122120.0,0.01350293]
[1759992567191,0.91732669,122130.0,122120.0,0.01350293]
[1759992567422,1.17122255,122130.0,122120.0,0.00350293]
[1759992567850,1.17322255,122130.0,122120.0,0.00050293]
[1759992568440,1.17722255,122130.0,122120.0,0.00150293]
[1759992568647,1.25721935,122130.0,122120.0,0.00150293]
[1759992568851,1.25721935,122130.0,122120.0,0.00354268]
[1759992573647,0.74742763,122130.0,122120.0,0.00354268]
[1759992573854,1.25721935,122130.0,122120.0,0.00354268]
[1759992574057,1.2648847,122130.0,122120.0,0.00354268]
[1759992574744,1.29496919,122130.0,122120.0,0.00354268]
[1759992576628,1.32140182,122130.0,122120.0,0.00354268]
[1759992577323,1.55236182,122130.0,122120.0,0.00354268]
[1759992577859,1.32140182,122130.0,122120.0,0.00354268]
[1759992578048,1.52227733,122130.0,122120.0,0.00354268]
[1759992578256,1.29131733,122130.0,122120.0,0.00354268]
[1759992578462,1.52227733,122130.0,122120.0,0.00354268]
[1759992582043,1.35267849,122130.0,122120.0,0.00354268]
[1759992583228,1.12171849,122130.0,122120.0,0.00354268]
[1759992583477,1.09528586,122130.0,122120.0,0.00354268]
[1759992583687,1.01528906,122130.0,122120.0,0.00354268]
[1759992585711,0.67509618,122130.0,122120.0,0.00354268]
[1759992585910,0.29992083,122130.0,122120.0,0.21941601]
[1759992586110,0.28460598,122130.0,122120.0,0.05564268]
[1759992586340,0.28460598,122130.0,122120.0,0.28668268]
[1759992588533,0.28460598,122130.0,122120.0,0.05564268]
[1759992588741,0.26001198,122130.0,122120.0,0.45045601]
[1759992589061,0.25388198,122130.0,122120.0,0.45045601]
[1759992590248,0.25388198,122130.0,122120.0,0.28668268]
[1759992590523,0.25388198,122130.0,122120.0,0.05564268]
[1759992590725,0.25388198,122130.0,122120.0,0.45045601]
[1759992590934,0.25388198,122130.0,122120.0,0.28668268]
[1759992591961,0.25388198,122130.0,122120.0,0.45045601]
[1759992593434,0.25388198,122130.0,122120.0,0.45041601]
[1759992593576,0.17075992,122130.0,122120.0,0.45041601]
[1759992600253,0.17075992,122130.0,122120.0,0.21941601]
[1759992600448,0.17075992,122130.0,122120.0,0.37184268]
[1759992600752,0.17075992,122130.0,122120.0,0.53561601]
[1759992601776,0.20728418,122130.0,122120.0,0.05564268]
[1759992601988,0.22386418,122130.0,122120.0,0.34697268]
[1759992602411,0.61065486,122130.0,122120.0,0.11601268]
[1759992602625,0.61065486,122130.0,122120.0,0.34697268]
[1759992602831,0.61065486,122130.0,122120.0,0.00354268]
[1759992603074,0.61065486,122130.0,122120.0,0.31970268]
[1759992604048,0.27046198,122130.0,122120.0,0.31970268]
[1759992604623,0.30129607,122130.0,122120.0,0.31970268]
[1759992605052,0.30129607,122130.0,122120.0,0.34697268]
[1759992605421,0.25388198,122130.0,122120.0,0.37180268]
[1759992608755,0.25388198,122130.0,122120.0,0.30461601]
[1759992608908,0.25388198,122130.0,122120.0,0.53557601]
[1759992611326,0.25388198,122130.0,122120.0,0.37180268]
[1759992611835,0.25388198,122130.0,122120.0,0.53557601]
[1759992615752,0.25388198,122130.0,122120.0,0.53553601]
[1759992615960,0.007,122130.0,122120.0,0.87572889]
[1759992617013,0.003,122130.0,122120.0,0.87472889]
[1759992617222,0.19653514,122150.0,122130.0,0.16375992]
[1759992617453,0.24685517,122150.0,122140.0,0.44584652]
[1759992618648,0.24785517,122150.0,122140.0,0.45384652]
[1759992618987,0.24885517,122150.0,122140.0,0.45584652]
[1759992620017,0.3271879,122150.0,122140.0,0.2921]
[1759992620165,0.3271879,122150.0,122140.0,0.04572]
[1759992620382,0.3429379,122150.0,122140.0,0.3262]
[1759992620764,0.68313078,122150.0,122140.0,0.01]
[1759992620973,1.03540078,122150.0,122140.0,0.01]
[1759992621173,1.03540078,122150.0,122140.0,0.18284]
[1759992621398,1.05999087,122150.0,122140.0,0.18284]
[1759992621905,1.05999087,122150.0,122140.0,0.24104]
[1759992622807,0.71979799,122150.0,122140.0,0.24205971]
[1759992623063,1.05999087,122150.0,122140.0,0.24205971]
[1759992625118,1.05999087,122150.0,122140.0,0.01101971]
[1759992625541,1.05999087,122150.0,122140.0,0.05773971]
[1759992628801,0.98165814,122150.0,122140.0,0.05773971]
[1759992629034,0.98165814,122150.0,122140.0,0.01101971]
[1759992629216,0.98165814,122150.0,122140.0,0.24205971]
[1759992635635,0.98165814,122150.0,122140.0,0.24201971]
[1759992636662,0.98165814,122150.0,122140.0,0.01101971]
[1759992636871,0.98165814,122150.0,122140.0,0.24201971]
[1759992637078,1.06165494,122150.0,122140.0,0.24201971]
[1759992637299,1.06165494,122150.0,122140.0,0.01101971]
[1759992637518,1.06165494,122150.0,122140.0,0.24197971]
[1759992638225,1.06165494,122150.0,122140.0,0.01101971]
[1759992638442,1.37214184,122150.0,122140.0,0.01101971]
[1759992638874,1.14118184,122150.0,122140.0,0.01101971]
[1759992639128,1.40241374,122150.0,122140.0,0.01101971]
[1759992639339,1.17133374,122150.0,122140.0,0.01101971]
[1759992639528,0.16375992,122130.0,122120.0,0.00050293]
[1759992639771,0.89870256,122130.0,122120.0,0.00050293]
[1759992639978,0.92607256,122130.0,122120.0,0.00050293]
[1759992640197,0.94140422,122130.0,122120.0,0.00050293]
[1759992640419,0.94300511,122130.0,122120.0,0.00050293]
[1759992641069,0.94500511,122130.0,122120.0,0.00050293]
[1759992641292,0.71392511,122130.0,122120.0,0.00050293]
[1759992641508,0.94500511,122130.0,122120.0,0.00050293]
[1759992641982,1.11506231,122130.0,122120.0,0.00050293]
[1759992642179,1.11906231,122130.0,122120.0,0.00150293]
[1759992642436,1.11910231,122130.0,122120.0,0.00150293]
[1759992644247,0.88798231,122130.0,122120.0,0.00150293]
[1759992644433,1.11906231,122130.0,122120.0,0.00150293]
[1759992645169,1.11906231,122130.0,122120.0,0.00252289]
[1759992645420,1.11910231,122130.0,122120.0,0.00252289]
[1759992645626,0.86393727,122130.0,122120.0,0.00252289]
[1759992645871,1.11906231,122130.0,122120.0,0.00252289]
[1759992646606,0.88798231,122130.0,122120.0,0.00252289]
[1759992647025,1.11906231,122130.0,122120.0,0.00252289]
[1759992647621,0.88798231,122130.0,122120.0,0.00252289]
[1759992647825,1.11906231,122130.0,122120.0,0.00252289]
[1759992649218,0.88798231,122130.0,122120.0,0.00252289]
[1759992649345,1.11906231,122130.0,122120.0,0.00252289]
[1759992649565,0.88798231,122130.0,122120.0,0.00252289]
[1759992649750,0.60881223,122130.0,122120.0,0.00252289]
[1759992649974,1.11906231,122130.0,122120.0,0.00252289]
[1759992652082,0.88798231,122130.0,122120.0,0.00252289]
[1759992652311,1.11906231,122130.0,122120.0,0.00252289]
[1759992652736,0.88798231,122130.0,122120.0,0.00252289]
[1759992652961,1.11906231,122130.0,122120.0,0.00252289]
[1759992653257,0.56610544,122130.0,122120.0,0.00252289]
[1759992653425,0.79718544,122130.0,122120.0,0.00252289]
[1759992654280,0.56610544,122130.0,122120.0,0.00252289]
[1759992654493,0.2987104,122130.0,122120.0,0.01767289]
[1759992654752,0.55383544,122130.0,122120.0,0.01767289]
[1759992655148,0.2987104,122130.0,122120.0,0.01767289]
[1759992655354,0.55383544,122130.0,122120.0,0.00252289]
[1759992656427,0.55383544,122130.0,122120.0,0.02977289]
[1759992657351,0.03059842,122130.0,122120.0,0.47174126]
[1759992657548,0.19435834,122130.0,122120.0,0.78810126]
[1759992657770,0.03059842,122130.0,122120.0,0.53297622]
[1759992658224,0.19435834,122130.0,122120.0,0.53297622]
[1759992659612,0.16975992,122130.0,122120.0,0.53297622]
[1759992660038,0.19435253,122130.0,122120.0,0.53297622]
[1759992660251,0.16975992,122130.0,122120.0,0.53297622]
[1759992660459,0.50200156,122130.0,122120.0,0.34613289]
[1759992660660,0.52659417,122130.0,122120.0,0.02977289]
[1759992661082,0.52659417,122130.0,122120.0,0.34613289]
[1759992661308,0.53194417,122130.0,122120.0,0.33825873]
[1759992661953,0.53194417,122130.0,122120.0,0.50203206]
[1759992662401,0.47000757,122130.0,122120.0,0.50203206]
[1759992662867,0.19970253,122130.0,122120.0,0.52510206]
[1759992663842,0.19970253,122130.0,122120.0,0.04496873]
[1759992664034,0.21488253,122130.0,122120.0,0.36132873]
[1759992664828,0.21488253,122130.0,122120.0,0.36128873]
[1759992665038,0.24525054,122130.0,122120.0,0.36128873]
[1759992665785,0.19970253,122130.0,122120.0,0.29394206]
[1759992666010,0.19970253,122130.0,122120.0,0.52506206]
[1759992666216,0.19435253,122130.0,122120.0,0.52506206]
[1759992667028,0.19435253,122130.0,122120.0,0.29394206]
[1759992667190,0.46472757,122130.0,122120.0,0.02189873]
[1759992667397,0.51321848,122130.0,122120.0,0.33821873]
[1759992668670,0.48862587,122130.0,122120.0,0.52628206]
[1759992669080,0.48862587,122130.0,122120.0,0.36250873]
[1759992669271,0.48862587,122130.0,122120.0,0.52628206]
[1759992669564,0.42488496,122130.0,122120.0,0.29516206]
[1759992669764,0.16975992,122130.0,122120.0,0.52624206]
[1759992670180,0.16975992,122130.0,122120.0,0.20996206]
[1759992670389,0.16975992,122130.0,122120.0,0.52624206]
[1759992671334,0.16975992,122130.0,122120.0,0.29516206]
[1759992671540,0.16975992,122130.0,122120.0,0.52624206]
[1759992672475,0.16975992,122130.0,122120.0,0.29516206]
[1759992672675,0.16975992,122130.0,122120.0,0.52624206]
[1759992673710,0.16975992,122130.0,122120.0,0.04618873]
[1759992673852,0.50207156,122130.0,122120.0,0.25297873]
[1759992674050,0.50207156,122130.0,122120.0,0.33817873]
[1759992674276,0.52666417,122130.0,122120.0,0.50195206]
[1759992674477,0.52666417,122130.0,122120.0,0.52624206]
[1759992674680,0.48682156,122130.0,122120.0,0.52624206]
[1759992674997,0.50207156,122130.0,122120.0,0.10709873]
[1759992675220,0.50207156,122130.0,122120.0,0.33817873]
[1759992675395,0.24694652,122130.0,122120.0,0.10709873]
[1759992675602,0.25628913,122130.0,122120.0,0.52624206]
[1759992675799,0.23169652,122130.0,122120.0,0.52624206]
[1759992676232,0.23169652,122130.0,122120.0,0.36246873]
[1759992677253,0.23169652,122130.0,122120.0,0.04618873]
[1759992677456,0.24694652,122130.0,122120.0,0.33813873]
[1759992678260,0.27153913,122130.0,122120.0,0.33813873]
[1759992678461,0.24694652,122130.0,122120.0,0.33813873]
[1759992679550,0.27153913,122130.0,122120.0,0.33813873]
[1759992680022,0.24694652,122130.0,122120.0,0.33813873]
[1759992680183,0.27153913,122130.0,122120.0,0.33813873]
[1759992680367,0.24694652,122130.0,122120.0,0.33813873]
[1759992680791,0.27153913,122130.0,122120.0,0.33813873]
[1759992681257,0.27153913,122130.0,122120.0,0.10709873]
[1759992681458,0.27153913,122130.0,122120.0,0.33813873]
[1759992682226,0.16377333,122120.0,122110.0,0.45570124]
[1759992682546,0.24806708,122120.0,122110.0,0.05205084]
[1759992682690,0.50932212,122120.0,122110.0,0.3445109]
[1759992682907,0.25419708,122120.0,122110.0,0.50829764]
[1759992683136,0.23894708,122120.0,122110.0,0.53258764]
[1759992683537,0.23994708,122120.0,122110.0,0.53358764]
[1759992684178,0.24194708,122120.0,122110.0,0.53458764]
[1759992684588,0.24194708,122120.0,122110.0,0.0545609]
[1759992684827,0.24194708,122120.0,122110.0,0.2856009]
[1759992685018,0.24194708,122120.0,122110.0,0.3708009]
[1759992685423,0.49707212,122120.0,122110.0,0.3708009]
[1759992685600,0.17290333,122120.0,122110.0,0.53458764]
[1759992686998,0.17290333,122120.0,122110.0,0.1397609]
[1759992687228,0.17290333,122120.0,122110.0,0.3707609]
[1759992688614,0.17290333,122120.0,122110.0,0.1397609]
[1759992688732,0.17290333,122120.0,122110.0,0.53454764]
[1759992688962,0.24073508,122120.0,122110.0,0.53454764]
[1759992690574,0.24073508,122120.0,122110.0,0.3707609]
[1759992691438,0.24073508,122120.0,122110.0,0.0545609]
[1759992691646,0.25598508,122120.0,122110.0,0.3707609]
[1759992692079,0.25598508,122120.0,122110.0,0.1397609]
[1759992692309,0.25598508,122120.0,122110.0,0.3707609]
[1759992692733,0.25598508,122120.0,122110.0,0.1397609]
[1759992692944,0.25598508,122120.0,122110.0,0.3707609]
[1759992693151,0.25598508,122120.0,122110.0,0.30354764]
[1759992693366,0.25598508,122120.0,122110.0,0.53454764]
[1759992694179,0.25598508,122120.0,122110.0,0.3707609]
[1759992695239,0.18815333,122120.0,122110.0,0.3707609]
[1759992699640,0.18815333,122120.0,122110.0,0.53454764]
[1759992700817,0.17290333,122120.0,122110.0,0.53450764]
[1759992701605,0.17290333,122120.0,122110.0,0.30354764]
[1759992701806,0.18881333,122120.0,122110.0,0.3464309]
[1759992702010,0.25380442,122120.0,122110.0,0.3464309]
[1759992702498,0.50892946,122120.0,122110.0,0.0302709]
[1759992702731,0.50892946,122120.0,122110.0,0.1154709]
[1759992702915,0.50892946,122120.0,122110.0,0.3464309]
[1759992704057,0.25380442,122120.0,122110.0,0.3464309]
[1759992706110,0.25380442,122120.0,122110.0,0.0302709]
[1759992706429,0.25380442,122120.0,122110.0,0.0882609]
[1759992706430,0.61152349,122120.0,122110.0,0.0882609]
[1759992706630,0.69464555,122120.0,122110.0,0.3192209]
[1759992707292,0.69464555,122120.0,122110.0,0.0882609]
[1759992707465,0.69464555,122120.0,122110.0,0.3192209]
[1759992707821,0.67702555,122120.0,122110.0,0.3192209]
[1759992708819,0.33692648,122120.0,122110.0,0.3192209]
[1759992709068,0.67702555,122120.0,122110.0,0.3192209]
[1759992709866,0.33692648,122120.0,122110.0,0.3192209]
[1759992711067,0.33692648,122120.0,122110.0,0.25204764]
[1759992711270,0.33692648,122120.0,122110.0,0.49806764]
[1759992711485,0.27193539,122120.0,122110.0,0.3192209]
[1759992712002,0.27193539,122120.0,122110.0,0.3342809]
[1759992714474,0.27193539,122120.0,122110.0,0.50983764]
[1759992715056,0.27193539,122120.0,122110.0,0.3460509]
[1759992716541,0.2965307,122120.0,122110.0,0.3460509]
[1759992716750,0.3765275,122120.0,122110.0,0.3460509]
[1759992717573,0.3765275,122120.0,122110.0,0.3309909]
[1759992718074,0.2965307,122120.0,122110.0,0.27887764]
[1759992718217,0.2965307,122120.0,122110.0,0.50979764]
[1759992719276,0.2806207,122120.0,122110.0,0.50979764]
[1759992719488,0.2806207,122120.0,122110.0,0.53387764]
[1759992723027,0.2806207,122120.0,122110.0,0.30295764]
[1759992723226,0.2806207,122120.0,122110.0,0.53387764]
[1759992726888,0.02759531,122120.0,122110.0,0.87393671]
[1759992727091,0.02759531,122120.0,122110.0,0.53387764]
[1759992728247,0.19136864,122120.0,122110.0,0.53387764]
[1759992728503,0.19136864,122120.0,122110.0,0.0030609]
[1759992728504,0.54653771,122120.0,122110.0,0.0030609]
[1759992728718,0.20643864,122120.0,122110.0,0.49955764]
[1759992728950,0.20643864,122120.0,122110.0,0.18343764]